fUST/lending_fUST_20251209
["ID","MTS","AMOUNT","RATE_DAILY","PERIOD"]
[398019904,1765295445110,-499.0,0.0001167,2]
[398019905,1765295445119,-500.0,0.0001167,2]
[398019906,1765295445128,-500.0,0.0001167,2]
[398019907,1765295445137,-152.51806869,0.0001167,2]
[398019908,1765295445147,-151.0,0.0001167,2]
[398019909,1765295445156,-151.0,0.0001167,2]
[398019910,1765295445165,-151.0,0.0001167,2]
[398019911,1765295445174,-500.0,0.0001167,2]
[398019912,1765295445184,-500.0,0.0001167,2]
[398019913,1765295445192,-500.0,0.0001167,2]
[398019914,1765295445203,-1534.79,0.00011689,2]
[398019915,1765295445212,-1000.0,0.00011691,2]
[398019916,1765295445221,-492.0,0.00011691,2]
[398019917,1765295445233,-1581.1246293,0.0001179,2]
[398019918,1765295445242,-823.8396531,0.0001179,2]
[398019919,1765295445252,-170.7897522,0.0001179,2]
[398019920,1765295445261,-151.0,0.000118,2]
[398019921,1765295445270,-151.0,0.000118,2]
[398019922,1765295445279,-151.0,0.00011807,2]
[398019923,1765295445288,-499.0,0.00011807,2]
[398019924,1765295445297,-500.0,0.00011807,2]
[398019925,1765295445306,-500.0,0.00011807,2]
[398019926,1765295445315,-247.86319052,0.00011807,2]
[398019927,1765295445323,-151.0,0.00011807,2]
[398019928,1765295445332,-500.0,0.00011807,2]
[398019929,1765295445342,-500.0,0.00011807,2]
[398019930,1765295445351,-500.0,0.00011807,2]
[398019931,1765295445360,-151.0,0.000119,2]
[398019932,1765295445369,-151.0,0.00011944,2]
[398019933,1765295445378,-499.0,0.00011944,2]
[398019934,1765295445386,-500.0,0.00011944,2]
[398019936,1765295445395,-500.0,0.00011944,2]
[398019938,1765295445404,-151.0,0.00011944,2]
[398019940,1765295445413,-500.0,0.00011944,2]
[398019942,1765295445422,-194.34988413,0.00011944,2]
[398019944,1765295445431,-500.0,0.00011944,2]
[398019946,1765295445440,-3068.77213553,0.00012,2]
[398019948,1765295445449,-4446.0,0.00012,2]
[398019950,1765295445460,-1534.79,0.00012079,2]
[398019951,1765295445469,-151.0,0.00012081,2]
[398019953,1765295445481,-499.0,0.00012081,2]
[398019955,1765295445491,-500.0,0.00012081,2]
[398019957,1765295445500,-538.21274117,0.00012081,2]
[398019959,1765295445510,-236.74560197,0.00012081,2]
[398019961,1765295445519,-198.78136203,0.00012081,2]
[398019962,1765295445529,-500.0,0.00012081,2]
[398019963,1765295445538,-151.0,0.000121,2]
[398019964,1765295445548,-151.0,0.000121,2]
[398019965,1765295445557,-2669.18,0.00012102,2]
[398019966,1765295445567,-151.0,0.00012192,2]
[398019967,1765295445576,-151.0,0.000122,2]
[398019968,1765295445585,-245.0,0.00012218,2]
[398019969,1765295445594,-499.0,0.00012218,2]
[398019970,1765295445604,-500.0,0.00012218,2]
[398019971,1765295445613,-500.0,0.00012218,2]
[398019972,1765295445623,-151.0,0.000123,2]
[398019973,1765295445633,-1534.79,0.00012328,2]
[398019974,1765295445643,-1324.34,0.00012329,2]
[398019975,1765295445653,-1103.61,0.00012329,2]
[398019976,1765295445662,-919.68,0.00012329,2]
[398019977,1765295445673,-766.4,0.00012329,2]
[398019978,1765295445683,-638.66,0.00012329,2]
[398019979,1765295445692,-532.22,0.00012329,2]
[398019980,1765295445702,-443.52,0.00012329,2]
[398019981,1765295445711,-369.6,0.00012329,2]
[398019982,1765295445721,-308.0,0.00012329,2]
[398019983,1765295445730,-256.66,0.00012329,2]
[398019984,1765295445740,-213.89,0.00012329,2]
[398019985,1765295445750,-178.24,0.00012329,2]
[398019986,1765295445759,-891.22,0.00012329,2]
[398019987,1765295445768,-499.0,0.00012355,2]
[398019988,1765295445778,-500.0,0.00012355,2]
[398019989,1765295445787,-500.0,0.00012355,2]
[398019990,1765295445797,-151.0,0.000124,2]
[398019991,1765295445806,-499.0,0.00012492,2]
[398019992,1765295445816,-500.0,0.00012492,2]
[398019993,1765295445825,-500.0,0.00012492,2]
[398019994,1765295445835,-3894.73103121,0.000125,2]
[398019995,1765295445845,-151.0,0.000125,2]
[398019996,1765295445855,-151.0,0.000126,2]
[398019997,1765295445866,-499.0,0.00012629,2]
[398019998,1765295445876,-500.0,0.00012629,2]
[398019999,1765295445885,-500.0,0.00012629,2]
[398020000,1765295445895,-539.42202304,0.00012691,2]
[398020001,1765295446110,-151.0,0.000127,2]
[398020002,1765295446129,-2965.76,0.00012739,2]
[398020003,1765295446139,-151.0,0.0001274,2]
[398020004,1765295446150,-499.0,0.00012766,2]
[398020005,1765295446160,-500.0,0.00012766,2]
[398020006,1765295446171,-500.0,0.00012766,2]
[398020007,1765295446181,-1534.79,0.00012775,2]
[398020008,1765295446191,-151.0,0.000128,2]
[398020009,1765295446200,-1000.0,0.0001286,2]
[398020010,1765295446210,-791.0,0.0001286,2]
[398020011,1765295446220,-1534.79,0.00012899,2]
[398020012,1765295446231,-1534.79,0.00012899,2]
[398020013,1765295446241,-1534.79,0.00012899,2]
[398020014,1765295446251,-2319.59126851,0.000129,2]
[398020015,1765295446261,-151.0,0.000129,2]
[398020016,1765295446270,-20367.22523646,0.000129,2]
[398020017,1765295446280,-20367.22523644,0.000129,2]
[398020018,1765295446290,-499.0,0.00012903,2]
[398020019,1765295446299,-500.0,0.00012903,2]
[398020021,1765295446309,-500.0,0.00012903,2]
[398020022,1765295446318,-151.0,0.00013,2]
[398020023,1765295446328,-499.0,0.0001304,2]
[398020024,1765295446338,-500.0,0.0001304,2]
[398020025,1765295446347,-500.0,0.0001304,2]
[398020026,1765295446356,-151.0,0.000131,2]
[398020027,1765295446366,-499.0,0.00013177,2]
[398020028,1765295446375,-500.0,0.00013177,2]
[398020029,1765295446384,-500.0,0.00013177,2]
[398020030,1765295446394,-151.0,0.000132,2]
[398020031,1765295446403,-151.0,0.000132,2]
[398020032,1765295446412,-500.0,0.00013273,2]
[398020033,1765295446421,-464.7728055,0.00013273,2]
[398020034,1765295446431,-500.0,0.00013273,2]
[398020035,1765295446440,-500.0,0.00013273,2]
[398020036,1765295446449,-500.0,0.00013273,2]
[398020037,1765295446458,-500.0,0.00013273,2]
[398020039,1765295446468,-499.0,0.00013314,2]
[398020040,1765295446478,-500.0,0.00013314,2]
[398020042,1765295446489,-500.0,0.00013314,2]
[398020043,1765295446498,-631.0,0.00013364,2]
[398020044,1765295446509,-2156.0,0.00013364,2]
[398020045,1765295446518,-1360.0,0.00013364,2]
[398020046,1765295446528,-151.0,0.000134,2]
[398020048,1765295446538,-151.0,0.000134,2]
[398020049,1765295446549,-499.0,0.00013451,2]
[398020050,1765295446559,-500.0,0.00013451,2]
[398020051,1765295446568,-189.74100415,0.00013451,2]
[398020052,1765295446578,-151.0,0.000135,2]
[398020053,1765295446588,-1534.79,0.00013551,2]
[398020054,1765295446599,-1534.79,0.00013551,2]
[398020055,1765295446609,-1534.79,0.00013551,2]
[398020056,1765295446619,-1534.79,0.00013551,2]
[398020057,1765295446628,-1534.84865689,0.00013551,2]
[398020058,1765295446639,-10000.0,0.00013569,2]
[398020059,1765295446649,-500.0,0.00013587,2]
[398020060,1765295446658,-499.0,0.00013588,2]
[398020061,1765295446668,-198.36489375,0.00013588,2]
[398020062,1765295446677,-38000.0,0.00013608,3]
[398020063,1765295446687,-1042.152677,0.00013608,2]
[398020064,1765295446697,-1042.152677,0.00013608,2]
[398020065,1765295446707,-1042.152677,0.00013608,2]
[398020066,1765295446717,-1042.152677,0.00013608,2]
[398020067,1765295446728,-151.0,0.00013608,2]
[398020068,1765295446739,-280.112833,0.00013608,2]
[398020069,1765295446749,-151.0,0.00013608,2]
[398020070,1765295446759,-280.112833,0.00013608,2]
[398020071,1765295446769,-280.112833,0.00013608,2]
[398020072,1765295446779,-280.112833,0.00013608,2]
[398020073,1765295446788,-151.0,0.00013608,2]
[398020074,1765295446798,-151.0,0.00013608,2]
[398020075,1765295446808,-151.0,0.00013608,2]
[398020076,1765295446817,-196.215346,0.00013608,2]
[398020077,1765295446827,-291.943704,0.00013608,2]
[398020078,1765295446836,-291.943704,0.00013608,2]
[398020079,1765295446846,-291.943704,0.00013608,2]
[398020080,1765295446857,-291.943704,0.00013608,2]
[398020081,1765295446867,-176.537843,0.00013608,2]
[398020082,1765295446876,-151.0,0.00013608,2]
[398020083,1765295446885,-176.537843,0.00013608,2]
[398020084,1765295446895,-176.537843,0.00013608,2]
[398020085,1765295446905,-176.537843,0.00013608,2]
[398020088,1765295446915,-151.0,0.00013608,2]
[398020089,1765295446924,-218.583861,0.00013608,2]
[398020091,1765295446934,-151.0,0.00013608,2]
[398020092,1765295446944,-218.583861,0.00013608,2]
[398020094,1765295446958,-151.0,0.00013608,2]
[398020096,1765295446967,-218.583861,0.00013608,2]
[398020097,1765295446976,-151.0,0.00013608,2]
[398020099,1765295446988,-218.583861,0.00013608,2]
[398020100,1765295446999,-151.0,0.00013608,2]
[398020102,1765295447008,-151.0,0.00013608,2]
[398020103,1765295447018,-151.0,0.00013608,2]
[398020104,1765295447027,-151.0,0.00013608,2]
[398020105,1765295447039,-202.471472,0.00013608,2]
[398020106,1765295447049,-227.291824,0.00013616,2]
[398020107,1765295447059,-359.367592,0.00013616,2]
[398020108,1765295447069,-359.367592,0.00013616,2]
[398020109,1765295447078,-359.367592,0.00013616,2]
[398020110,1765295447087,-359.367592,0.00013616,2]
[398020112,1765295447096,-250.066685,0.00013616,2]
[398020114,1765295447105,-250.066685,0.00013616,2]
[398020116,1765295447114,-250.066685,0.00013616,2]
[398020118,1765295447123,-250.066685,0.00013616,2]
[398020120,1765295447132,-201.363463,0.00013616,2]
[398020122,1765295447142,-201.363463,0.00013616,2]
[398020124,1765295447151,-201.363463,0.00013616,2]
[398020125,1765295447160,-201.363463,0.00013616,2]
[398020126,1765295447169,-151.0,0.00013616,2]
[398020127,1765295447180,-151.0,0.00013616,2]
[398020128,1765295447189,-151.0,0.00013616,2]
[398020129,1765295447198,-151.0,0.00013616,2]
[398020130,1765295447207,-1525.504505,0.00013616,2]
[398020131,1765295447218,-1525.504505,0.00013616,2]
[398020132,1765295447227,-1525.504505,0.00013616,2]
[398020133,1765295447238,-151.0,0.00013616,2]
[398020134,1765295447247,-1525.504505,0.00013616,2]
[398020135,1765295447257,-38000.0,0.00013616,3]
[398020136,1765295447266,-38000.0,0.00013625,3]
[398020137,1765295447275,-222.495628,0.00013634,2]
[398020138,1765295447285,-222.495628,0.00013634,2]
[398020139,1765295447295,-222.495628,0.00013634,2]
[398020140,1765295447304,-222.495628,0.00013634,2]
[398020141,1765295447314,-356.157462,0.00013634,2]
[398020142,1765295447323,-356.157462,0.00013634,2]
[398020143,1765295447332,-151.0,0.00013634,2]
[398020144,1765295447342,-356.157462,0.00013634,2]
[398020145,1765295447350,-356.157462,0.00013634,2]
[398020146,1765295447360,-151.0,0.00013634,2]
[398020147,1765295447369,-151.0,0.00013634,2]
[398020148,1765295447378,-381.563495,0.00013634,2]
[398020149,1765295447387,-381.563495,0.00013634,2]
[398020150,1765295447396,-381.563495,0.00013634,2]
[398020151,1765295447405,-409.17794,0.00013634,2]
[398020152,1765295447414,-381.563495,0.00013634,2]
[398020153,1765295447423,-409.17794,0.00013634,2]
[398020154,1765295447432,-409.17794,0.00013634,2]
[398020155,1765295447441,-409.17794,0.00013634,2]
[398020156,1765295447450,-422.590346,0.00013634,2]
[398020157,1765295447459,-422.590346,0.00013634,2]
[398020158,1765295447469,-718.923835,0.00013634,2]
[398020159,1765295447479,-422.590346,0.00013634,2]
[398020160,1765295447490,-718.923835,0.00013634,2]
[398020161,1765295447499,-422.590346,0.00013634,2]
[398020162,1765295447509,-718.923835,0.00013634,2]
[398020163,1765295447518,-718.923835,0.00013634,2]
[398020164,1765295447527,-38000.0,0.00013634,3]
[398020165,1765295447539,-500.0,0.00013636,2]
[398020166,1765295447549,-38000.0,0.00013643,3]
[398020167,1765295447559,-38000.0,0.00013652,3]
[398020168,1765295447568,-38000.0,0.0001366,3]
[398020169,1765295447578,-151.0,0.00013661,2]
[398020170,1765295447588,-151.0,0.00013661,2]
[398020171,1765295447597,-151.0,0.00013661,2]
[398020172,1765295447607,-151.0,0.00013661,2]
[398020173,1765295447617,-151.0,0.00013661,2]
[398020174,1765295447627,-151.0,0.00013661,2]
[398020175,1765295447637,-151.0,0.00013661,2]
[398020176,1765295447647,-151.0,0.00013661,2]
[398020177,1765295447657,-195.485429,0.00013661,2]
[398020178,1765295447667,-151.0,0.00013661,2]
[398020179,1765295447676,-151.0,0.00013661,2]
[398020180,1765295447695,-151.0,0.00013661,2]
[398020181,1765295447707,-189.386222,0.00013661,2]
[398020182,1765295447717,-189.386222,0.00013661,2]
[398020183,1765295447726,-189.386222,0.00013661,2]
[398020184,1765295447738,-189.386222,0.00013661,2]
[398020185,1765295447749,-258.631408,0.00013661,2]
[398020186,1765295447759,-258.631408,0.00013661,2]
[398020187,1765295447770,-258.631408,0.00013661,2]
[398020188,1765295447780,-258.631408,0.00013661,2]
[398020189,1765295447790,-151.0,0.00013661,2]
[398020190,1765295447800,-151.0,0.00013661,2]
[398020191,1765295447811,-151.244236,0.00013661,2]
[398020192,1765295447821,-257.887265,0.00013661,2]
[398020193,1765295447831,-257.887265,0.00013661,2]
[398020194,1765295447840,-257.887265,0.00013661,2]
[398020195,1765295447850,-257.887265,0.00013661,2]
[398020196,1765295447860,-151.800982,0.00013669,2]
[398020197,1765295447870,-676.693704,0.00013669,2]
[398020198,1765295447880,-676.693704,0.00013669,2]
[398020199,1765295447890,-676.693704,0.00013669,2]
[398020200,1765295447900,-676.693704,0.00013669,2]
[398020201,1765295447910,-294.688113,0.00013669,2]
[398020202,1765295447920,-294.688113,0.00013669,2]
[398020203,1765295447930,-294.688113,0.00013669,2]
[398020204,1765295447939,-294.688113,0.00013669,2]
[398020205,1765295447950,-151.0,0.00013669,2]
[398020206,1765295447965,-151.0,0.00013669,2]
[398020207,1765295447974,-151.0,0.00013669,2]
[398020208,1765295447985,-151.0,0.00013669,2]
[398020209,1765295447995,-245.568,0.00013669,2]
[398020210,1765295448004,-245.568,0.00013669,2]
[398020211,1765295448014,-245.568,0.00013669,2]
[398020212,1765295448023,-245.568,0.00013669,2]
[398020213,1765295448033,-151.0,0.00013669,2]
[398020214,1765295448044,-151.0,0.00013669,2]
[398020215,1765295448054,-196.238409,0.00013669,2]
[398020216,1765295448064,-196.238409,0.00013669,2]
[398020217,1765295448073,-202.13816,0.00013669,2]
[398020218,1765295448084,-196.238409,0.00013669,2]
[398020219,1765295448094,-196.238409,0.00013669,2]
[398020220,1765295448103,-202.13816,0.00013669,2]
[398020221,1765295448114,-202.13816,0.00013669,2]
[398020222,1765295448125,-151.0,0.00013669,2]
[398020223,1765295448135,-202.13816,0.00013669,2]
[398020224,1765295448145,-151.0,0.00013669,2]
[398020225,1765295448155,-151.0,0.00013669,2]
[398020226,1765295448165,-151.0,0.00013669,2]
[398020227,1765295448175,-151.0,0.00013669,2]
[398020228,1765295448185,-151.0,0.00013669,2]
[398020229,1765295448195,-151.0,0.00013669,2]
[398020230,1765295448205,-151.0,0.00013669,2]
[398020231,1765295448215,-560.964267,0.00013669,2]
[398020232,1765295448225,-151.0,0.00013669,2]
[398020233,1765295448236,-560.964267,0.00013669,2]
[398020234,1765295448246,-151.0,0.00013669,2]
[398020235,1765295448256,-560.964267,0.00013669,2]
[398020236,1765295448266,-560.964267,0.00013669,2]
[398020237,1765295448275,-1042.152677,0.00013669,2]
[398020238,1765295448286,-1042.152677,0.00013669,2]
[398020239,1765295448296,-1042.152677,0.00013669,2]
[398020240,1765295448305,-1042.152677,0.00013669,2]
[398020241,1765295448315,-203.201454,0.00013669,2]
[398020242,1765295448325,-280.112833,0.00013669,2]
[398020243,1765295448335,-151.0,0.00013669,2]
[398020244,1765295448344,-280.112833,0.00013669,2]
[398020245,1765295448354,-280.112833,0.00013669,2]
[398020246,1765295448363,-280.112833,0.00013669,2]
[398020247,1765295448373,-151.0,0.00013669,2]
[398020248,1765295448383,-151.0,0.00013669,2]
[398020249,1765295448392,-151.0,0.00013669,2]
[398020250,1765295448402,-291.943704,0.00013669,2]
[398020251,1765295448412,-291.943704,0.00013669,2]
[398020252,1765295448423,-291.943704,0.00013669,2]
[398020253,1765295448433,-291.943704,0.00013669,2]
[398020254,1765295448443,-176.537843,0.00013669,2]
[398020255,1765295448453,-151.0,0.00013669,2]
[398020256,1765295448463,-176.537843,0.00013669,2]
[398020257,1765295448473,-176.537843,0.00013669,2]
[398020258,1765295448485,-176.537843,0.00013669,2]
[398020259,1765295448495,-151.547957,0.00013669,2]
[398020260,1765295448504,-218.583861,0.00013669,2]
[398020261,1765295448515,-151.0,0.00013669,2]
[398020262,1765295448525,-218.583861,0.00013669,2]
[398020263,1765295448536,-151.0,0.00013669,2]
[398020264,1765295448546,-218.583861,0.00013669,2]
[398020265,1765295448556,-210.560851,0.00013669,2]
[398020266,1765295448567,-218.583861,0.00013669,2]
[398020267,1765295448576,-151.0,0.00013669,2]
[398020268,1765295448586,-160.26534,0.00013669,2]
[398020269,1765295448596,-151.0,0.00013669,2]
[398020270,1765295448607,-151.0,0.00013669,2]
[398020271,1765295448616,-38000.0,0.00013669,3]
[398020272,1765295448626,-151.0,0.00013678,2]
[398020273,1765295448636,-193.207712,0.00013678,2]
[398020274,1765295448646,-193.207712,0.00013678,2]
[398020275,1765295448656,-193.207712,0.00013678,2]
[398020276,1765295448666,-193.207712,0.00013678,2]
[398020277,1765295448676,-151.0,0.00013678,2]
[398020278,1765295448688,-151.0,0.00013678,2]
[398020279,1765295448697,-151.0,0.00013678,2]
[398020280,1765295448707,-151.0,0.00013678,2]
[398020281,1765295448716,-151.0,0.00013678,2]
[398020282,1765295448726,-151.0,0.00013678,2]
[398020283,1765295448738,-151.0,0.00013678,2]
[398020284,1765295448748,-151.0,0.00013678,2]
[398020285,1765295448758,-151.0,0.00013678,2]
[398020286,1765295448767,-151.0,0.00013678,2]
[398020287,1765295448777,-151.0,0.00013678,2]
[398020288,1765295448787,-151.0,0.00013678,2]
[398020289,1765295448796,-365.894645,0.00013678,2]
[398020290,1765295448806,-365.894645,0.00013678,2]
[398020291,1765295448815,-365.894645,0.00013678,2]
[398020292,1765295448824,-365.894645,0.00013678,2]
[398020293,1765295448833,-151.0,0.00013678,2]
[398020294,1765295448843,-151.0,0.00013678,2]
[398020295,1765295448852,-151.0,0.00013678,2]
[398020296,1765295448862,-202.590626,0.00013678,2]
[398020297,1765295448872,-202.590626,0.00013678,2]
[398020298,1765295448882,-202.590626,0.00013678,2]
[398020299,1765295448891,-202.590626,0.00013678,2]
[398020300,1765295448901,-151.935492,0.00013678,2]
[398020301,1765295448911,-160.9673,0.00013678,2]
[398020302,1765295448920,-160.9673,0.00013678,2]
[398020303,1765295448929,-160.9673,0.00013678,2]
[398020304,1765295448938,-160.9673,0.00013678,2]
[398020305,1765295448948,-251.953447,0.00013678,2]
[398020306,1765295448958,-151.0,0.00013678,2]
[398020307,1765295448972,-251.953447,0.00013678,2]
[398020308,1765295448982,-151.0,0.00013678,2]
[398020309,1765295448993,-251.953447,0.00013678,2]
[398020310,1765295449002,-251.953447,0.00013678,2]
[398020311,1765295449013,-151.0,0.00013678,2]
[398020312,1765295449023,-151.0,0.00013678,2]
[398020313,1765295449032,-205.148317,0.00013678,2]
[398020314,1765295449042,-205.148317,0.00013678,2]
[398020315,1765295449052,-205.148317,0.00013678,2]
[398020316,1765295449061,-205.148317,0.00013678,2]
[398020317,1765295449071,-359.367592,0.00013678,2]
[398020318,1765295449080,-359.367592,0.00013678,2]
[398020319,1765295449090,-359.367592,0.00013678,2]
[398020320,1765295449100,-359.367592,0.00013678,2]
[398020321,1765295449110,-250.066685,0.00013678,2]
[398020322,1765295449120,-250.066685,0.00013678,2]
[398020323,1765295449129,-250.066685,0.00013678,2]
[398020324,1765295449139,-250.066685,0.00013678,2]
[398020325,1765295449149,-201.363463,0.00013678,2]
[398020326,1765295449159,-201.363463,0.00013678,2]
[398020327,1765295449169,-201.363463,0.00013678,2]
[398020328,1765295449179,-201.363463,0.00013678,2]
[398020329,1765295449189,-151.0,0.00013678,2]
[398020330,1765295449199,-151.0,0.00013678,2]
[398020331,1765295449208,-151.0,0.00013678,2]
[398020332,1765295449218,-151.0,0.00013678,2]
[398020333,1765295449227,-1525.504505,0.00013678,2]
[398020334,1765295449238,-1525.504505,0.00013678,2]
[398020335,1765295449248,-1525.504505,0.00013678,2]
[398020336,1765295449258,-151.0,0.00013678,2]
[398020337,1765295449268,-1525.504505,0.00013678,2]
[398020338,1765295449277,-38000.0,0.00013678,3]
[398020339,1765295449287,-38000.0,0.00013687,3]
[398020340,1765295449297,-151.0,0.00013687,2]
[398020341,1765295449307,-151.0,0.00013687,2]
[398020342,1765295449316,-151.0,0.00013687,2]
[398020343,1765295449326,-151.0,0.00013687,2]
[398020344,1765295449335,-151.0,0.00013687,2]
[398020345,1765295449345,-151.0,0.00013687,2]
[398020346,1765295449355,-151.0,0.00013687,2]
[398020347,1765295449364,-151.0,0.00013687,2]
[398020348,1765295449374,-151.0,0.00013687,2]
[398020349,1765295449383,-233.616259,0.00013687,2]
[398020350,1765295449393,-233.616259,0.00013687,2]
[398020351,1765295449402,-233.616259,0.00013687,2]
[398020352,1765295449412,-233.616259,0.00013687,2]
[398020353,1765295449421,-151.0,0.00013687,2]
[398020354,1765295449430,-250.320643,0.00013687,2]
[398020355,1765295449439,-250.320643,0.00013687,2]
[398020356,1765295449449,-250.320643,0.00013687,2]
[398020357,1765295449459,-250.320643,0.00013687,2]
[398020358,1765295449468,-151.0,0.00013687,2]
[398020359,1765295449478,-151.0,0.00013687,2]
[398020360,1765295449489,-151.0,0.00013687,2]
[398020361,1765295449498,-151.0,0.00013687,2]
[398020362,1765295449507,-151.0,0.00013687,2]
[398020363,1765295449517,-151.0,0.00013687,2]
[398020364,1765295449527,-151.0,0.00013687,2]
[398020365,1765295449536,-151.0,0.00013687,2]
[398020366,1765295449545,-222.495628,0.00013687,2]
[398020367,1765295449555,-222.495628,0.00013687,2]
[398020368,1765295449565,-222.495628,0.00013687,2]
[398020369,1765295449574,-222.495628,0.00013687,2]
[398020370,1765295449584,-356.157462,0.00013687,2]
[398020371,1765295449593,-356.157462,0.00013687,2]
[398020372,1765295449603,-151.0,0.00013687,2]
[398020373,1765295449613,-356.157462,0.00013687,2]
[398020374,1765295449623,-356.157462,0.00013687,2]
[398020375,1765295449632,-151.0,0.00013687,2]
[398020376,1765295449642,-151.0,0.00013687,2]
[398020377,1765295449651,-381.563495,0.00013687,2]
[398020378,1765295449662,-381.563495,0.00013687,2]
[398020379,1765295449876,-381.563495,0.00013687,2]
[398020380,1765295449887,-409.17794,0.00013687,2]
[398020381,1765295449897,-381.563495,0.00013687,2]
[398020382,1765295449907,-409.17794,0.00013687,2]
[398020383,1765295449918,-409.17794,0.00013687,2]
[398020384,1765295449928,-409.17794,0.00013687,2]
[398020385,1765295449938,-422.590346,0.00013687,2]
[398020386,1765295449947,-422.590346,0.00013687,2]
[398020387,1765295449960,-718.923835,0.00013687,2]
[398020388,1765295449969,-422.590346,0.00013687,2]
[398020389,1765295449979,-718.923835,0.00013687,2]
[398020390,1765295449992,-422.590346,0.00013687,2]
[398020391,1765295450003,-718.923835,0.00013687,2]
[398020392,1765295450012,-718.923835,0.00013687,2]
[398020393,1765295450022,-38000.0,0.00013696,3]
[398020394,1765295450032,-1500.0,0.00013699,2]
[398020395,1765295450045,-1000.0,0.00013699,2]
[398020396,1765295450055,-151.000288,0.00013699,2]
[398020397,1765295450065,-500.0,0.00013699,2]
[398020398,1765295450074,-500.0,0.00013699,2]
[398020399,1765295450083,-500.0,0.00013699,2]
[398020400,1765295450093,-500.0,0.00013699,2]
[398020401,1765295450103,-500.0,0.00013699,2]
[398020402,1765295450113,-2000.0,0.00013699,7]
[398020403,1765295450121,-500.0,0.00013699,2]
[398020404,1765295450131,-500.0,0.00013699,2]
[398020405,1765295450140,-500.0,0.00013699,2]
[398020406,1765295450149,-500.0,0.00013699,2]
[398020407,1765295450160,-160.0,0.00013699,2]
[398020408,1765295450170,-166.77,0.000137,2]
[398020409,1765295450180,-151.0,0.000137,2]
[398020410,1765295450190,-38000.0,0.00013704,3]
[398020411,1765295450200,-151.0,0.00013713,2]
[398020412,1765295450210,-151.0,0.00013713,2]
[398020413,1765295450219,-151.0,0.00013713,2]
[398020414,1765295450229,-151.0,0.00013713,2]
[398020415,1765295450243,-151.0,0.00013713,2]
[398020416,1765295450253,-151.0,0.00013713,2]
[398020417,1765295450263,-151.0,0.00013713,2]
[398020418,1765295450274,-151.0,0.00013713,2]
[398020419,1765295450283,-151.0,0.00013713,2]
[398020420,1765295450293,-151.0,0.00013713,2]
[398020421,1765295450303,-151.0,0.00013713,2]
[398020422,1765295450312,-189.386222,0.00013713,2]
[398020423,1765295450321,-189.386222,0.00013713,2]
[398020424,1765295450330,-189.386222,0.00013713,2]
[398020425,1765295450339,-189.386222,0.00013713,2]
[398020426,1765295450349,-258.631408,0.00013713,2]
[398020427,1765295450359,-258.631408,0.00013713,2]
[398020428,1765295450368,-258.631408,0.00013713,2]
[398020429,1765295450377,-258.631408,0.00013713,2]
[398020430,1765295450386,-213.643141,0.00013713,2]
[398020431,1765295450395,-151.0,0.00013713,2]
[398020432,1765295450405,-257.887265,0.00013713,2]
[398020433,1765295450414,-257.887265,0.00013713,2]
[398020434,1765295450423,-257.887265,0.00013713,2]